bitfinex-derivatives/quotes_ETHF0:USTF0_20240910
["timestamp","ask_amount","ask_price","bid_price","bid_amount"]
[1725990065663,0.372,2355.7,2355.5,0.42451]
[1725990066063,0.767,2355.8,2355.6,0.42449]
[1725990066467,1.19146,2355.8,2355.5,3.73451]
[1725990067068,0.767,2355.8,2355.6,0.42449]
[1725990067468,0.767,2355.8,2355.5,3.31]
[1725990067469,1.19146,2355.8,2355.5,3.7345]
[1725990067674,1.19146,2355.8,2355.5,3.31]
[1725990067974,0.767,2355.8,2355.7,0.42448]
[1725990068879,0.42438,2356.3,2355.7,4.2448]
[1725990069174,0.42438,2356.3,2356.0,0.42442]
[1725990069175,0.7674,2356.2,2356.0,0.42442]
[1725990069873,1.19179,2356.2,2355.9,3.73443]
[1725990070071,0.4244,2356.1,2355.8,0.42445]
[1725990070269,0.42442,2356.1,2355.8,0.42446]
[1725990072966,0.7674,2356.2,2355.7,0.42447]
[1725990072967,0.42443,2356.0,2355.7,0.42447]
[1725990073178,0.42442,2356.1,2355.8,0.42445]
[1725990075277,0.42443,2356.0,2355.7,0.42446]
[1725990075476,0.3745,2355.9,2355.7,0.42446]
[1725990075677,0.79037,2355.8,2355.4,24.7179]
[1725990075976,0.79037,2355.8,2355.7,0.42448]
[1725990075977,0.746,2355.8,2355.7,0.42448]
[1725990076181,0.746,2355.8,2355.6,0.42448]
[1725990076681,0.746,2355.8,2355.7,0.42448]
[1725990077072,0.746,2355.8,2355.6,0.42448]
[1725990077384,0.746,2355.8,2355.7,0.42448]
[1725990077880,0.746,2355.8,2355.4,20.6009]
[1725990078375,0.42451,2355.5,2355.4,20.2]
[1725990078579,0.42457,2355.2,2355.0,4.54159]
[1725990078784,0.42457,2355.2,2354.9,0.379]
[1725990078785,0.42456,2355.3,2355.1,0.42458]
[1725990079482,1.1208,2355.4,2354.7,0.7793]
[1725990079672,0.42457,2355.2,2354.9,0.4246]
[1725990080284,0.42457,2355.2,2355.0,0.4246]
[1725990081384,0.42456,2355.3,2355.0,0.4246]
[1725990081586,0.42456,2355.3,2354.8,20.2]
[1725990081587,3.31,2355.3,2354.8,20.2]
[1725990081781,0.42461,2355.0,2354.6,0.42466]
[1725990082081,0.3894,2354.9,2354.7,0.42466]
[1725990082278,0.7683,2354.9,2354.6,0.42466]
[1725990082686,0.7683,2354.9,2354.7,0.42465]
[1725990082886,0.7683,2354.9,2354.6,0.42466]
[1725990083987,0.7683,2354.9,2354.7,0.42465]
[1725990086279,0.7683,2354.9,2354.5,0.379]
[1725990086480,1.19293,2354.9,2354.6,0.42467]
[1725990086787,0.42464,2354.8,2354.6,0.42467]
[1725990087278,0.42464,2354.8,2354.5,0.80368]
[1725990087478,0.7683,2354.9,2354.6,0.42467]
[1725990087679,0.7683,2354.9,2354.5,0.80368]
[1725990087874,0.42466,2354.7,2354.4,0.3678]
[1725990088080,1.82988,2354.9,2354.4,0.4247]
[1725990088282,0.42467,2354.7,2354.4,0.4247]
[1725990088475,0.42465,2354.8,2354.5,0.42469]
[1725990088681,0.42464,2354.8,2354.5,0.42469]
[1725990089083,0.42466,2354.7,2354.5,0.42469]
[1725990089287,0.42468,2354.6,2354.4,0.4247]
[1725990089483,0.3911,2354.5,2354.4,0.4247]
[1725990090289,0.3911,2354.5,2354.3,20.2]
[1725990090491,0.3911,2354.5,2354.3,20.62472]
[1725990091488,0.3911,2354.5,2354.4,0.42471]
[1725990092592,0.3911,2354.5,2354.3,20.2]
[1725990092593,0.3911,2354.5,2354.3,20.62472]
[1725990092888,0.3911,2354.5,2354.4,0.42471]
[1725990095684,0.42466,2354.7,2354.3,20.2]
[1725990095987,0.42466,2354.7,2354.5,0.42469]
[1725990096784,0.42466,2354.7,2354.5,0.42468]
[1725990104091,0.4247,2354.5,2354.3,20.62471]
[1725990104290,0.81721,2354.4,2354.3,20.2]
[1725990104499,1.20071,2354.4,2354.3,20.2]
[1725990104798,1.20071,2354.4,2354.3,20.62473]
[1725990104799,0.776,2354.4,2354.3,20.62473]
[1725990105198,1.06161,2354.8,2354.4,0.42471]
[1725990105389,0.42467,2354.7,2354.5,0.42469]
[1725990105585,0.42468,2354.6,2354.4,0.4247]
[1725990105797,2.23391,2354.8,2354.4,0.4247]
[1725990105987,0.42469,2354.6,2354.4,0.4247]
[1725990106186,0.4247,2354.5,2354.3,20.62472]
[1725990106386,0.3925,2354.4,2354.3,20.62472]
[1725990106588,0.776,2354.4,2354.3,20.62472]
[1725990107595,0.82094,2354.8,2354.3,27.7572]
[1725990107800,0.749,2354.8,2354.5,3.31]
[1725990107997,1.17365,2354.8,2354.6,0.42467]
[1725990108389,0.42466,2354.7,2354.5,0.42468]
[1725990110387,0.42467,2354.6,2354.5,0.42468]
[1725990110588,0.42467,2354.6,2354.4,0.4247]
[1725990111595,0.42467,2354.7,2354.5,0.42469]
[1725990111792,0.42468,2354.6,2354.4,0.4247]
[1725990112603,1.81063,2354.8,2354.4,0.4247]
[1725990112804,0.42468,2354.6,2354.4,0.4247]
[1725990113190,1.81063,2354.8,2354.3,20.2]
[1725990113191,0.749,2354.8,2354.3,20.2]
[1725990113391,0.42466,2354.7,2354.5,0.42468]
[1725990114098,0.42467,2354.6,2354.4,0.4247]
[1725990114297,0.42466,2354.7,2354.5,0.42468]
[1725990117699,0.749,2354.8,2354.3,20.2]
[1725990118005,0.4247,2354.5,2354.3,20.2]
[1725990118204,0.751,2354.4,2354.3,20.2]
[1725990118505,0.751,2354.4,2354.3,20.62473]
[1725990119005,0.751,2354.4,2354.2,0.42474]
[1725990119201,0.751,2354.4,2354.3,0.42473]
[1725990120196,4.9982,2354.4,2354.2,20.2]
[1725990120401,0.42475,2354.2,2353.9,0.78979]
[1725990120600,0.42475,2354.2,2353.9,0.42479]
[1725990120805,0.42475,2354.2,2353.9,20.62479]
[1725990121010,0.3998,2354.2,2354.0,0.42478]
[1725990121511,0.82455,2354.2,2354.0,0.42478]
[1725990121809,0.3998,2354.2,2354.0,0.42478]
[1725990122303,0.3998,2354.2,2354.1,0.42476]
[1725990122510,0.42474,2354.3,2354.0,0.42478]
[1725990122701,1.54282,2354.4,2354.1,0.42476]
[1725990122901,0.42473,2354.3,2354.0,0.42477]
[1725990123708,1.54282,2354.4,2354.1,0.42476]
[1725990123904,0.751,2354.4,2354.3,0.42473]
[1725990124411,0.751,2354.4,2354.0,0.768]
[1725990124611,0.42475,2354.2,2353.9,21.29545753]
[1725990124811,0.79184,2354.3,2354.1,0.66402499]
[1725990125320,7.26449013,2354.3,2354.1,0.66402499]
[1725990125709,7.26449013,2354.3,2354.0,0.42478]
[1725990125911,3.01649013,2354.3,2354.0,0.42478]
[1725990126616,0.79184,2354.3,2354.0,0.42478]
[1725990126810,2.97565013,2354.4,2353.9,20.2]
[1725990127114,2.97590232,2354.4,2354.2,0.42474]
[1725990127310,1.17571,2354.4,2354.2,0.42474]
[1725990127713,3.16802212,2354.7,2354.5,0.42469]
[1725990127906,1.17775,2354.8,2354.3,0.42473]
[1725990128108,0.7531,2354.8,2354.6,0.42467]
[1725990128609,1.17774,2354.8,2354.6,0.42467]
[1725990129319,1.17774,2354.8,2354.5,0.42468]
[1725990129612,1.17775,2354.8,2354.6,0.42467]
[1725990129917,1.17774,2354.8,2354.5,0.42468]
[1725990130812,1.17774,2354.8,2354.6,0.42467]
[1725990131013,0.7531,2354.8,2354.6,0.42467]
[1725990131219,1.17775,2354.8,2354.5,0.42468]
[1725990131419,0.7531,2354.8,2354.5,0.42468]
[1725990131921,1.17775,2354.8,2354.6,0.66392098]
[1725990132216,0.42466,2354.7,2354.5,0.42469]
[1725990132417,1.17775,2354.8,2354.5,0.42469]
[1725990132608,1.17775,2354.8,2354.6,0.66391601]
[1725990132818,1.17775,2354.8,2354.7,0.66391601]
[1725990133121,5.42415,2354.8,2354.7,0.66391601]
[1725990133419,5.42415,2354.8,2354.5,0.42469]
[1725990133619,1.17775,2354.8,2354.6,0.66391442]
[1725990133822,1.17775,2354.8,2354.5,0.42469]
[1725990134011,7.98186,2354.7,2354.6,0.66392397]
[1725990134210,0.42474,2354.3,2354.0,4.54178]
[1725990134412,1.57115,2354.2,2354.1,2.22205835]
[1725990134607,5.81915,2354.2,2354.1,1.7264551]
[1725990135526,5.3944,2354.2,2354.1,1.72648301]
[1725990137620,5.81915,2354.2,2354.1,1.72648301]
[1725990137822,5.81915,2354.2,2354.1,0.66402119]
[1725990138116,5.81915,2354.2,2354.1,1.72647033]
[1725990138421,5.81915,2354.2,2354.1,0.66402119]
[1725990138927,5.3944,2354.2,2354.1,0.66402119]
[1725990139220,5.3944,2354.2,2354.1,0.66403913]
[1725990139425,5.3944,2354.2,2354.1,1.08879913]
[1725990139628,0.7746,2354.2,2354.1,1.08879913]
[1725990139827,0.7746,2354.2,2354.1,2.15121658]
[1725990140018,0.3752,2354.5,2354.4,0.42471]
[1725990140219,2.78352628,2354.7,2354.4,0.66403913]
[1725990140220,0.3792,2354.7,2354.4,0.66403913]
[1725990140426,0.3792,2354.7,2354.6,0.42467]
[1725990140824,2.78352628,2355.1,2354.6,8.22107847]
[1725990141029,0.3663,2355.2,2355.0,0.42459]
[1725990141226,0.3663,2355.2,2355.1,0.42458]
[1725990141433,0.3663,2355.2,2355.0,0.42459]
[1725990141618,0.3663,2355.2,2354.8,3.6973]
[1725990141619,0.3663,2355.2,2355.1,21.28831887]
[1725990141819,0.3663,2355.2,2355.1,20.86373887]
[1725990142120,0.3663,2355.2,2355.1,20.2]
[1725990142518,5.03727,2355.2,2355.1,20.86373443]
[1725990142725,5.03727,2355.2,2354.6,1.09545753]
[1725990142928,0.79087,2355.2,2354.7,1.72580556]
[1725990143129,0.3663,2355.2,2354.8,20.86377137]
[1725990143327,0.3663,2355.2,2354.9,1.08838137]
[1725990143519,0.3663,2355.2,2354.9,0.42461]
[1725990143724,0.3663,2355.2,2354.8,20.2]
[1725990143928,0.3663,2355.2,2355.1,0.42458]
[1725990144136,0.3663,2355.2,2354.9,0.7993]
[1725990144333,0.79088,2355.2,2354.8,20.62463]
[1725990144526,0.79088,2355.2,2354.9,0.66376929]
[1725990144830,0.79088,2355.2,2354.8,20.2]
[1725990144831,0.3663,2355.2,2354.8,20.2]
[1725990145024,0.4246,2355.0,2354.7,0.42465]
[1725990145223,0.4246,2355.0,2354.8,0.66380931]
[1725990145531,0.4038,2354.9,2354.7,20.62465]
[1725990145729,4.13842,2354.9,2354.5,0.42469]
[1725990145936,4.13842,2354.9,2354.6,0.42467]
[1725990146231,3.7138,2354.9,2354.7,0.6638373]
[1725990146421,0.82842,2354.9,2354.6,20.62466]
[1725990146619,0.82842,2354.9,2354.7,0.66381584]
[1725990146927,0.4038,2354.9,2354.7,0.42465]
[1725990147133,0.4038,2354.9,2354.6,20.62467]
[1725990147325,0.4038,2354.9,2354.7,0.66380546]
[1725990147524,0.4038,2354.9,2354.6,20.62467]
[1725990147725,0.4038,2354.9,2354.7,0.6638243]
[1725990148027,0.4038,2354.9,2354.4,4.40545753]
[1725990148227,0.4038,2354.9,2354.6,0.42466]
[1725990148429,0.4038,2354.9,2354.7,1.08848347]
[1725990148632,0.4038,2354.9,2354.7,0.42466]
[1725990149031,0.369,2355.1,2354.6,0.3945]
[1725990149032,0.42458,2355.1,2354.8,0.42464]
[1725990149635,0.42461,2355.0,2354.7,1.20615]
[1725990149836,0.42462,2354.9,2354.6,0.81916]
[1725990150029,0.42461,2355.0,2354.7,0.42466]
[1725990152141,0.42461,2355.0,2354.8,0.42464]
[1725990152548,0.42461,2355.0,2354.7,0.42465]
[1725990153233,0.42461,2355.0,2354.8,0.42464]
[1725990153536,1.81844,2355.2,2354.9,0.42461]
[1725990153537,1.18157,2355.2,2354.9,0.42461]
[1725990153737,1.18157,2355.2,2355.1,0.42458]
[1725990153738,0.3663,2355.2,2355.1,0.42458]
[1725990153935,0.3854,2355.4,2355.1,0.42457]
[1725990154139,0.7717,2355.4,2355.2,0.42457]
[1725990154445,0.7717,2355.4,2355.0,0.4246]
[1725990154634,0.42455,2355.3,2355.0,0.4246]
[1725990154833,1.19624,2355.4,2355.1,0.42458]
[1725990155029,0.7717,2355.4,2355.2,0.42456]
[1725990155362,0.3863,2355.4,2355.3,0.42455]
[1725990155531,0.42448,2355.7,2355.3,0.42455]
[1725990155734,0.81078,2355.7,2355.3,0.42455]
[1725990155933,0.81078,2355.7,2355.0,4.37151]
[1725990155934,0.3863,2355.7,2355.1,1.06147]
[1725990156140,0.3863,2355.7,2355.2,4.36262502]
[1725990156344,0.3863,2355.7,2355.5,0.4245]
[1725990157443,0.3863,2355.7,2355.3,0.3965]
[1725990157738,0.42455,2355.4,2354.9,4.117]
[1725990157946,0.3854,2355.3,2354.9,4.117]
[1725990158246,3.31,2355.1,2354.6,0.42466]
[1725990158638,0.42461,2355.0,2354.7,0.42466]
[1725990158937,3.31,2355.1,2354.8,0.42462]
[1725990159137,4.10188,2355.2,2354.9,0.42462]
[1725990162641,0.42463,2354.9,2354.6,0.42467]
[1725990162853,0.42465,2354.8,2354.5,20.99758]
[1725990163038,0.3991,2354.7,2354.6,0.42467]
[1725990163249,0.3991,2354.7,2354.5,20.62468]
[1725990163739,0.82376,2354.7,2354.5,20.2]
[1725990163936,0.4247,2354.5,2354.2,0.42474]
[1725990164243,0.81742,2354.4,2354.1,0.42476]
[1725990164834,0.81742,2354.4,2354.1,20.62476]
[1725990165236,0.3927,2354.4,2354.2,0.42474]
[1725990166542,0.3927,2354.4,2354.1,20.2]
[1725990166741,0.3927,2354.4,2354.2,0.42474]
[1725990167140,0.3927,2354.4,2354.3,0.42473]
[1725990167340,0.3927,2354.4,2354.2,0.42473]
[1725990168347,0.81742,2354.4,2354.2,0.42473]
[1725990168544,0.3927,2354.4,2354.2,0.42473]
[1725990170363,0.81741,2354.4,2354.1,20.2]
[1725990170549,0.3812,2354.3,2354.1,20.62475]
[1725990170752,0.3883,2354.2,2354.1,20.62475]
[1725990171943,0.3927,2354.4,2354.1,20.2]
[1725990172252,0.3927,2354.4,2354.2,0.42473]
[1725990172450,0.3927,2354.4,2354.3,0.42473]
[1725990172646,0.3927,2354.4,2354.2,0.42473]
[1725990173043,0.3927,2354.4,2354.3,0.42473]
[1725990173251,0.3927,2354.4,2354.2,0.42474]
[1725990173653,4.2472,2354.3,2353.7,5.21245753]
[1725990173852,3.31,2353.8,2353.1,5.21245753]
[1725990174062,3.31,2353.5,2353.2,0.66418015]
[1725990174353,3.31,2353.5,2352.8,26.7963455]
[1725990174557,3.31,2353.5,2353.2,0.42492]
[1725990174747,4.86675,2353.7,2353.2,0.42491]
[1725990174947,0.42486,2353.6,2353.2,0.42491]
[1725990175558,0.42486,2353.6,2353.2,0.42492]
[1725990176457,4.86674,2353.7,2352.9,3.31]
[1725990176752,0.7503,2353.7,2353.4,0.42487]
[1725990176960,0.7503,2353.7,2353.5,0.42487]
[1725990177654,0.7503,2353.7,2353.2,0.4031]
[1725990177947,0.7503,2353.7,2353.5,0.42487]
[1725990178847,0.7503,2353.7,2353.4,0.42488]
[1725990179444,0.7503,2353.7,2353.5,0.42487]
[1725990180457,0.3728,2353.7,2353.6,0.42485]
[1725990180660,0.3741,2354.0,2353.8,0.42481]
[1725990181149,0.3741,2354.0,2353.4,1.06223]
[1725990181350,0.3741,2354.0,2353.7,0.42482]
[1725990181754,0.3786,2354.2,2353.5,4.37219]
[1725990182060,0.3786,2354.2,2354.0,0.42478]
[1725990182257,0.3786,2354.2,2354.1,20.62476]
[1725990182454,0.3786,2354.2,2354.1,20.2]
[1725990182651,0.3786,2354.2,2354.0,0.42477]
[1725990183158,0.3786,2354.2,2354.1,20.2]
[1725990183361,0.3741,2354.3,2354.1,20.62476]
[1725990183544,0.3741,2354.3,2354.1,20.62475]
[1725990183751,0.3741,2354.3,2354.1,20.2]
[1725990183951,0.3741,2354.3,2354.1,20.62475]
[1725990184153,0.3741,2354.3,2354.2,0.42475]
[1725990185064,0.3741,2354.3,2354.1,20.2]
[1725990185257,0.3741,2354.3,2354.2,0.42475]
[1725990186763,0.7967,2354.5,2354.3,0.42473]
[1725990186950,0.7967,2354.5,2354.2,0.42473]
[1725990188252,0.42472,2354.4,2354.2,0.42473]
[1725990188553,0.7967,2354.5,2354.2,0.42473]
[1725990188752,0.7967,2354.5,2354.3,0.42473]
[1725990190666,0.42473,2354.4,2354.1,20.2]
[1725990190965,0.7967,2354.5,2354.2,0.42473]
[1725990191155,0.7967,2354.5,2354.1,20.2]
[1725990191156,0.79669,2354.5,2354.1,20.2]
[1725990191356,0.79669,2354.5,2354.2,0.42473]
[1725990191357,0.372,2354.5,2354.2,0.42473]
[1725990191561,0.79671,2354.5,2354.1,20.2]
[1725990192068,0.79671,2354.5,2354.3,0.42473]
[1725990193155,0.42472,2354.4,2354.2,0.42474]
[1725990193764,0.42472,2354.4,2354.1,20.2]
[1725990193765,0.7967,2354.5,2354.3,0.42473]
[1725990193966,0.3835,2354.4,2354.3,0.42473]
[1725990194162,0.372,2354.5,2354.1,20.2]
[1725990194363,0.372,2354.5,2354.3,0.42471]
[1725990195163,0.372,2354.5,2354.3,0.42473]
[1725990195464,0.3852,2354.6,2354.5,0.42469]
[1725990196161,0.7851,2354.6,2354.5,0.42469]
[1725990197470,1.20979,2354.6,2354.4,0.4247]
[1725990197666,0.42469,2354.5,2354.4,0.4247]
[1725990198168,0.7851,2354.6,2354.3,0.42472]
[1725990198361,1.20979,2354.6,2354.4,0.4247]
[1725990198669,0.7851,2354.6,2354.5,0.42469]
[1725990199064,0.3997,2355.0,2354.7,0.42464]
[1725990199370,0.3997,2355.0,2354.3,1.06182]
[1725990199371,0.42465,2354.8,2354.3,1.06182]
[1725990199570,0.42465,2354.8,2354.4,0.3904]
[1725990200467,0.42465,2354.8,2354.5,0.3663]
[1725990200666,0.42465,2354.8,2354.6,0.42467]
[1725990201065,0.42465,2354.8,2354.5,0.3663]
[1725990201262,3.31,2354.7,2354.2,0.3757]
[1725990201464,3.31,2354.7,2354.1,20.62475]
[1725990201465,0.42474,2354.3,2354.1,20.62475]
[1725990201665,0.3938,2354.2,2354.1,20.62475]
[1725990202674,0.3938,2354.2,2354.1,24.87275]
[1725990204280,0.3938,2354.2,2354.1,20.62475]
[1725990204868,0.3938,2354.2,2354.1,24.87275]
[1725990205068,0.3938,2354.2,2354.1,20.62475]
[1725990205865,0.3938,2354.2,2354.1,24.87275]
[1725990206073,0.3938,2354.2,2354.1,20.62475]
[1725990208374,0.7761,2354.2,2354.1,20.62475]
[1725990211071,0.7761,2354.2,2354.1,0.42475]
[1725990211674,0.3957,2354.6,2354.2,1.06187]
[1725990211875,3.20813628,2355.0,2354.8,0.42464]
[1725990212069,0.3727,2355.0,2354.9,0.42462]
[1725990213881,0.3727,2355.0,2354.8,0.42462]
[1725990214974,0.3727,2355.0,2354.9,0.42462]
[1725990215378,0.3727,2355.0,2354.8,0.42463]
[1725990217094,0.3727,2355.0,2354.7,0.42465]
[1725990217383,0.3727,2355.0,2354.3,4.117]
[1725990217384,0.42464,2354.9,2354.3,4.117]
[1725990217583,3.6827,2355.0,2354.6,0.42467]
[1725990217890,0.42463,2354.9,2354.6,0.42467]
[1725990218079,0.42463,2354.9,2354.7,0.42466]
[1725990218587,3.6827,2355.0,2354.7,0.42465]
[1725990218785,4.10732,2355.0,2354.7,0.42465]
[1725990218990,0.42462,2354.9,2354.7,0.42465]
[1725990219885,4.10731,2355.0,2354.7,0.42465]
[1725990220288,4.10731,2355.0,2354.8,0.42463]
[1725990220492,3.6827,2355.0,2354.4,1.06177]
[1725990220790,0.42463,2354.9,2354.7,0.42465]
[1725990221891,3.6827,2355.0,2354.7,0.42465]
[1725990222089,4.10731,2355.0,2354.4,1.06177]
[1725990222278,0.42462,2354.9,2354.7,0.42464]
[1725990224690,6.32701296,2355.0,2354.8,0.42463]
[1725990224892,3.01701296,2355.0,2354.8,0.42463]
[1725990225291,0.42462,2354.9,2354.7,0.42464]
[1725990228596,3.01702296,2355.0,2354.8,0.42464]
[1725990228986,0.42462,2354.9,2354.8,0.42464]
[1725990229190,0.42462,2354.9,2354.7,0.42464]
[1725990229401,2.59240296,2355.0,2354.3,6.65997753]
[1725990229700,2.59240296,2355.0,2354.3,0.42472]
[1725990229701,0.42469,2354.5,2354.3,0.42472]
[1725990229889,0.3824,2354.4,2354.3,0.42472]
[1725990230201,0.3824,2354.4,2354.3,1.08870123]
[1725990231197,0.3824,2354.4,2354.2,0.42474]
[1725990231391,0.4034,2354.3,2354.2,0.42474]
[1725990231595,0.4034,2354.3,2354.2,1.0887516]
[1725990232190,0.3824,2354.4,2354.3,0.42473]
[1725990232390,2.21970296,2354.8,2354.6,0.42467]
[1725990232589,2.21970296,2354.8,2354.5,0.42469]
[1725990232590,0.80616,2354.7,2354.5,0.42469]
[1725990233190,3.31,2354.6,2354.3,0.42473]
[1725990233396,0.4008,2354.5,2354.3,0.42473]
[1725990233898,0.3693,2354.4,2354.3,0.42473]
[1725990234199,0.3693,2354.4,2354.3,1.08869322]
[1725990235196,0.3693,2354.4,2354.3,1.08869203]
[1725990236296,0.79401,2354.4,2354.0,21.67215753]
[1725990236501,0.82653,2354.3,2354.1,1.08875462]
[1725990236699,0.4018,2354.3,2354.1,0.42475]
[1725990237295,0.82653,2354.3,2354.1,0.42475]
[1725990237502,3.31,2354.2,2354.0,20.2]
[1725990237795,0.3924,2354.1,2353.7,5.21245753]
[1725990237990,0.3924,2354.1,2354.0,0.42478]
[1725990238188,0.81716,2354.1,2353.9,20.62479]
[1725990238391,0.378,2354.0,2353.9,20.2]
[1725990238592,0.378,2354.0,2353.8,0.4248]
[1725990239501,0.80278,2354.0,2353.8,0.4248]
[1725990239703,0.378,2354.0,2353.8,0.4248]
[1725990240496,0.378,2354.0,2353.9,0.4248]
[1725990240704,0.4018,2354.3,2354.1,0.42476]
[1725990240894,0.378,2354.2,2354.1,0.42476]
[1725990241290,0.378,2354.2,2354.1,20.62476]
[1725990241702,0.42477,2354.1,2353.7,7.427]
[1725990241901,0.42477,2354.1,2353.9,0.4248]
[1725990242295,0.42477,2354.1,2353.9,20.6248]
[1725990242496,0.42477,2354.1,2353.9,20.2]
[1725990242702,0.42477,2354.1,2353.9,20.6248]
[1725990242903,0.80275,2354.2,2353.9,20.62479]
[1725990243499,0.80275,2354.2,2353.9,20.62478]
[1725990243701,0.80275,2354.2,2354.0,0.42478]
[1725990243899,0.80276,2354.2,2353.9,20.62479]
[1725990244203,0.378,2354.2,2353.9,20.6248]
[1725990244398,0.42477,2354.1,2353.9,20.6248]
[1725990246899,1.43988,2354.2,2353.9,20.2]
[1725990247103,0.3891,2354.0,2353.9,20.2]
[1725990247295,0.3891,2354.0,2353.9,20.6248]
[1725990247493,0.81388,2354.0,2353.8,0.42481]
[1725990247693,0.3986,2353.9,2353.8,0.42481]
[1725990247904,0.82341,2353.9,2353.7,20.62482]
[1725990248114,0.3778,2353.8,2353.7,20.62482]
[1725990250001,0.3986,2353.9,2353.8,0.42482]
[1725990251502,0.8234,2353.9,2353.8,0.42482]
[1725990252604,0.3986,2353.9,2353.8,0.42482]
[1725990253305,0.3778,2354.1,2353.7,20.2]
[1725990253514,0.80258,2354.1,2353.9,0.42479]
[1725990253703,0.80258,2354.1,2354.0,0.42478]
[1725990253897,0.80257,2354.1,2354.0,0.42478]
[1725990254297,0.3778,2354.1,2353.9,0.42479]
[1725990254511,0.42478,2354.0,2353.9,0.42479]
[1725990256212,0.42481,2353.9,2353.7,20.2]
[1725990256402,0.79981,2353.9,2353.7,20.2]
[1725990256710,0.375,2353.9,2353.8,0.42481]
[1725990257609,0.375,2353.9,2353.7,20.2]
[1725990257914,0.42482,2353.8,2353.7,20.2]
[1725990258309,0.79981,2353.9,2353.7,20.62483]
[1725990258704,0.42482,2353.8,2353.7,20.2]
[1725990259513,0.79981,2353.9,2353.7,20.62483]
[1725990260499,0.42482,2353.8,2353.7,20.2]
[1725990260698,0.42485,2353.7,2353.5,0.42487]
[1725990260912,0.4016,2353.7,2353.3,4.8555]
[1725990261112,0.4016,2353.7,2353.5,0.42486]
[1725990261113,0.82645,2353.7,2353.5,0.42486]
[1725990261414,0.82645,2353.7,2353.6,20.62485]
[1725990262616,0.82645,2353.7,2353.6,20.2]
[1725990263009,0.42489,2353.4,2353.3,0.3735]
[1725990263311,0.42492,2353.3,2353.1,0.3949]
[1725990263509,0.80492,2353.3,2353.2,20.62493]
[1725990263708,0.38,2353.3,2353.2,20.62493]
[1725990264207,0.7751,2353.3,2353.2,20.62493]
[1725990264609,1.20001,2353.3,2353.2,20.2]
[1725990264808,1.20002,2353.3,2352.9,4.117]
[1725990265014,0.42493,2353.2,2352.8,0.3827]
[1725990265312,3.31,2353.2,2352.9,20.2]
[1725990265611,0.42493,2353.2,2353.0,0.42495]
[1725990266007,1.20002,2353.3,2353.1,0.42495]
[1725990266207,1.20002,2353.3,2353.1,0.42494]
[1725990266715,0.42493,2353.2,2353.0,0.42495]
[1725990267119,0.7751,2353.3,2353.1,0.42495]
[1725990267413,1.20001,2353.3,2353.1,0.42493]
[1725990268511,1.20002,2353.3,2353.1,0.42493]
[1725990268911,0.7751,2353.3,2352.9,20.2]
[1725990269110,0.4249,2353.4,2353.2,0.42491]
[1725990269318,0.4249,2353.4,2353.3,0.42491]
[1725990270317,0.4249,2353.4,2352.9,21.26245]
[1725990270519,0.7552,2353.5,2353.2,0.42492]
[1725990270708,0.4249,2353.4,2353.2,0.42492]
[1725990271723,0.42491,2353.3,2353.1,0.42493]
[1725990271919,0.42493,2353.2,2353.0,0.42496]
[1725990272220,0.7856,2353.1,2353.0,0.42496]
[1725990272818,1.21055,2353.1,2352.9,20.62497]
[1725990273119,0.7856,2353.1,2352.9,20.2]
[1725990273315,1.21055,2353.1,2352.9,20.62496]
[1725990273716,0.403,2353.0,2352.9,20.62496]
[1725990274422,0.403,2353.0,2352.9,20.2]
[1725990274716,1.21056,2353.1,2352.9,20.62498]
[1725990276510,0.42496,2353.0,2352.9,20.2]
[1725990277424,1.21056,2353.1,2352.9,20.62498]
[1725990277811,0.7856,2353.1,2353.0,0.42496]
[1725990280821,1.21055,2353.1,2353.0,0.42496]
[1725990281120,0.7856,2353.1,2353.0,0.42496]
[1725990281820,0.7856,2353.1,2352.9,20.2]
[1725990282013,1.21056,2353.1,2352.9,20.62498]
[1725990282723,1.21056,2353.1,2352.9,0.42498]
[1725990283429,1.21055,2353.1,2352.9,0.42498]
[1725990285825,0.7856,2353.1,2353.0,0.42496]
[1725990286218,1.21055,2353.1,2352.9,0.42497]
[1725990286416,1.21055,2353.1,2353.0,0.42496]
[1725990287320,1.21055,2353.1,2352.9,0.42497]
[1725990287622,1.21055,2353.1,2353.0,0.42496]
[1725990287829,0.7856,2353.1,2353.0,0.42496]
[1725990288322,0.7856,2353.1,2352.7,21.26254]
[1725990288323,0.42492,2353.3,2352.8,1.0625]
[1725990288521,1.18023,2353.3,2353.1,0.42493]
[1725990288723,0.42493,2353.2,2353.1,0.42493]
[1725990289926,1.18022,2353.3,2353.1,0.42493]
[1725990290125,1.18022,2353.3,2353.2,0.42493]
[1725990290526,1.18022,2353.3,2353.1,0.42493]
[1725990291029,0.3876,2353.5,2353.0,0.3817]
[1725990291229,1.21309,2353.5,2353.1,1.06237]
[1725990291424,0.7882,2353.5,2353.4,0.42489]
[1725990294923,0.7882,2353.5,2353.1,1.06237]
[1725990295123,0.7882,2353.5,2353.4,0.42489]
[1725990295521,0.3763,2353.7,2353.3,1.06228]
[1725990295727,0.7717,2353.7,2353.4,0.7657]
[1725990295938,1.19654,2353.7,2353.5,0.42487]
[1725990297030,0.42486,2353.6,2353.4,0.42488]
[1725990297217,0.79816,2353.6,2353.4,0.42488]
[1725990297423,0.3733,2353.6,2353.5,0.42487]